[Event "37th Zalakaros Festival 2018"]
[Site "Zalakaros"]
[Date "2018.06.01"]
[Round "8"]
[White "Horak, Jiri"]
[Black "Peczely, Sebastian Zsombor"]
[Result "1/2-1/2"]
[ECO "D10"]
[WhiteElo "2131"]
[BlackElo "2244"]
[Annotator "NA"]
[PlyCount "159"]
[EventDate "2018.??.??"]
[EventType "swiss"]
[EventCountry "HUN"]
[SourceTitle "playchess.com"]
[Source "ChessBase"]
[SourceQuality "1"]
[TimeControl "40/5400+30:1800+30"]

1. d4 {[%emt 0:01:35]} d5 {[%emt 0:08:57]} 2. c4 {[%emt 0:00:30]} c6 {[%emt 0:00:05]} 3. Nc3 {[%emt 0:00:11]} Nf6 {[%emt 0:00:13]} 4. e3 {[%emt 0:01:22]} g6 {[%emt 0:00:56]} 5. Nf3 {[%emt 0:00:15]} Bg7 {[%emt 0:00:06]} 6. Bd3 {[%emt 0:00:59]} dxc4 {[%emt 0:00:22] D94: Grünfeld: 4 Nf3 Bg7 5 e3} (6... O-O 7. O-O Nbd7 8. cxd5 Nxd5 9. Nxd5 cxd5 10. Qb3 Nf6 11. Bd2 Ne4 12. Bb4 a5 13. Ba3 b6 14. Rac1 Bb7 15. Rc2 Nd6 16. Rfc1 Nc4 17. Bxc4 dxc4 18. Qxc4 {1-0 (51) Dreev,A (2653)-Jobava,B (2690) chess.com INT 2018}) 7. Bxc4 {[%emt 0:00:06]} b5 {[%emt 0:00:07]} 8. Bb3 {[%emt 0:00:43]} a5 {[%emt 0:00:48]} 9. Ne5 {[%emt 0:05:39]} O-O {[%emt 0:02:26]} 10. Qf3 $146 {[%emt 0:01:33]} ({Predecessor:} 10. a4 b4 11. Ne2 Bb7 12. O-O Nbd7 13. Nxd7 Qxd7 14. Bd2 c5 {0-1 (31) Rua,N (2094)-Palao,M (2138) Cali 2003}) 10... a4 {[%emt 0:04:36]} 11. Bc2 {[%emt 0:00:37]} Qb6 {[%emt 0:05:45]} 12. O-O {[%emt 0:01:48]} Bb7 {[%emt 0:01:51]} 13. Bd2 {[%emt 0:11:40]} Nfd7 {[%emt 0:03:38]} 14. Nxd7 {[%emt 0:05:18]} Nxd7 {[%emt 0:01:10]} 15. Rfd1 {[%emt 0:10:07]} e5 {[%emt 0:04:22]} 16. d5 {[%emt 0:07:07]} Nc5 {[%emt 0:17:17]} 17. dxc6 {[%emt 0:15:07]} Bxc6 {[%emt 0:00:20]} 18. Nd5 {[%emt 0:00:35]} Bxd5 {[%emt 0:03:11]} 19. Qxd5 {[%emt 0:01:13]} Rfd8 {[%emt 0:03:18]} 20. Qf3 {[%emt 0:01:04]} b4 {[%emt 0:00:16]} 21. Be4 {[%emt 0:05:25]} Ra7 {[%emt 0:02:51]} 22. Be1 {[%emt 0:00:43]} Rad7 {[%emt 0:00:08]} 23. Rxd7 {[%emt 0:01:31]} Rxd7 {[%emt 0:00:46]} 24. g4 {[%emt 0:02:05]} Ne6 {[%emt 0:10:05]} 25. Rc1 {[%emt 0:07:25]} Ng5 {[%emt 0:06:25]} 26. Qg2 {[%emt 0:00:08]} Rc7 {[%emt 0:00:49]} 27. Rd1 {[%emt 0:00:25]} Rc4 {[%emt 0:01:21]} 28. Bd3 {[%emt 0:04:36]} Rc8 {[%emt 0:00:09]} 29. h4 {[%emt 0:05:59]} Ne6 {[%emt 0:06:33]} 30. Qe4 {[%emt 0:01:08]} Rb8 {[%emt 0:04:25]} 31. Bc4 {[%emt 0:00:53]} Nc5 {[%emt 0:04:56]} 32. Qf3 {[%emt 0:01:29]} Qc7 {[%emt 0:01:48]} 33. Bd5 {[%emt 0:01:43]} e4 {[%emt 0:01:14]} 34. Qe2 {[%emt 0:01:52]} Nd3 {[%emt 0:00:38]} 35. b3 {[%emt 0:00:43]} axb3 {[%emt 0:00:39]} 36. axb3 {[%emt 0:00:47]} Qe7 {[%emt 0:00:49]} 37. f4 {[%emt 0:02:07]} Nxe1 {[%emt 0:03:11]} 38. Rxe1 {[%emt 0:00:24]} Bc3 {[%emt 0:00:24]} 39. Rd1 {[%emt 0:00:23]} Qxh4 {[%emt 0:00:10]} 40. Bxe4 {[%emt 0:00:00]} Re8 {[%emt 0:00:47]} 41. Bf3 {[%emt 0:05:29]} Qg3+ {[%emt 0:05:20]} 42. Kf1 {[%emt 0:01:45]} Kg7 {[%emt 0:01:55]} 43. Qf2 {[%emt 0:00:39]} Qh3+ {[%emt 0:00:35]} 44. Ke2 {[%emt 0:01:22]} Qh6 {[%emt 0:09:24]} 45. g5 {[%emt 0:00:10]} Qh3 {[%emt 0:00:16]} 46. Bd5 {[%emt 0:06:35]} Re7 {[%emt 0:01:04]} 47. Rh1 {[%emt 0:02:29]} Qf5 {[%emt 0:00:17]} 48. Bg2 {[%emt 0:04:24]} Bd4 {[%emt 0:05:36]} 49. Rh3 {[%emt 0:05:10]} Qb5+ {[%emt 0:03:21]} 50. Kf3 {[%emt 0:04:45]} Rxe3+ {[%emt 0:00:09]} 51. Qxe3 {[%emt 0:00:16]} Bxe3 {[%emt 0:00:07]} 52. Kxe3 {[%emt 0:00:04]} Qc5+ {[%emt 0:00:10]} 53. Kf3 {[%emt 0:00:21]} Qd5+ {[%emt 0:00:41]} 54. Kf2 {[%emt 0:00:55]} Qd2+ {[%emt 0:00:29]} 55. Kg3 {[%emt 0:00:50]} Qe3+ {[%emt 0:01:55]} 56. Kg4 {[%emt 0:00:21]} Qe6+ {[%emt 0:00:22]} 57. Kh4 {[%emt 0:00:20]} f6 {[%emt 0:01:43]} 58. Rg3 {[%emt 0:03:55]} (58. Rf3 $19) 58... Qe1 {[%emt 0:00:44]} (58... Qe2 $142 59. gxf6+ Kxf6 60. Bf3 Qh2+ 61. Rh3 Qxf4+ 62. Bg4 Qg5+ 63. Kg3 h5 64. Kg2 Qxg4+ 65. Rg3 Qe2+ 66. Kh3 g5 67. Rg2 Qf3+ 68. Kh2 Qxb3 69. Re2 Qc4 70. Rf2+ Qf4+ 71. Kh1 h4 72. Rg2 b3 73. Kg1 Qc1+ 74. Kh2 b2 75. Rf2+ Kg6 76. Rf1 b1=Q 77. Rxc1 Qxc1 78. Kg2 Qf4 79. Kh1 Qf1+ 80. Kh2 h3 81. Kg3 Qg2#) 59. Kh3 {[%emt 0:00:46]} Qc1 {[%emt 0:00:36]} 60. gxf6+ {[%emt 0:00:20]} Kxf6 {[%emt 0:00:05]} 61. Rf3 {[%emt 0:00:16]} h5 {[%emt 0:00:51]} 62. Bf1 {[%emt 0:00:25]} Qd1 {[%emt 0:00:49]} 63. Bg2 {[%emt 0:00:21]} Qe2 {[%emt 0:01:02]} 64. Kg3 {[%emt 0:00:31] [#]} h4+ $1 {[%emt 0:01:12]} 65. Kh3 {[%emt 0:00:18]} Kf5 {[%emt 0:00:48]} 66. Bh1 {[%emt 0:00:39]} Qd1 {[%emt 0:01:18]} 67. Bg2 $1 {[%emt 0:00:22]} Qe1 {[%emt 0:00:56]} 68. Bf1 {[%emt 0:00:37]} Qd1 {[%emt 0:01:24]} 69. Bg2 {[%emt 0:00:14]} Qc2 {[%emt 0:00:13]} 70. Bh1 {[%emt 0:00:44] [#]} Qc3 $1 {[%emt 0:00:48]} 71. Bg2 {[%emt 0:00:35]} Qd2 {[%emt 0:00:26]} 72. Bf1 {[%emt 0:00:36]} Qe1 {[%emt 0:00:32]} 73. Bd3+ {[%emt 0:00:41]} Kf6 {[%emt 0:00:23]} 74. Bf1 {[%emt 0:00:07]} Qd1 {[%emt 0:00:16]} 75. Bg2 {[%emt 0:00:24]} Kf5 {[%emt 0:00:41]} 76. Kxh4 {[%emt 0:01:01]} Qe1+ {[%emt 0:01:48]} 77. Kh3 {[%emt 0:00:09]} Qg1 {[%emt 0:00:27]} 78. Rf1 {[%emt 0:00:17]} Qe3+ {[%emt 0:00:42]} 79. Rf3 $17 {[%emt 0:00:08]} Qe2 {[%emt 0:00:15]} 80. Kg3 {[%emt 0:00:16] Ke5} 1/2-1/2

[Event "37th Zalakaros Festival 2018"]
[Site "Zalakaros"]
[Date "2018.06.02"]
[Round "9"]
[White "Meszaros, Tamas"]
[Black "Hardicsay, Peter"]
[Result "1-0"]
[ECO "B40"]
[WhiteElo "2407"]
[BlackElo "2211"]
[Annotator "ChessBase"]
[PlyCount "35"]
[EventDate "2018.??.??"]
[EventType "swiss"]
[EventCountry "HUN"]
[SourceTitle "playchess.com"]
[Source "ChessBase"]
[SourceQuality "1"]
[TimeControl "40/5400+30:1800+30"]

1. e4 {[%emt 0:00:05]} c5 {[%emt 0:00:42]} 2. Nf3 {[%emt 0:00:16]} e6 {[%emt 0:00:10]} 3. d4 {[%emt 0:00:16]} cxd4 {[%emt 0:00:10]} 4. Nxd4 {[%emt 0:00:05]} Nf6 {[%emt 0:00:22]} 5. Nc3 {[%emt 0:00:05]} Nc6 {[%emt 0:00:07]} 6. Nxc6 {[%emt 0:00:29]} bxc6 {[%emt 0:00:36]} 7. e5 {[%emt 0:00:04]} Nd5 {[%emt 0:00:06]} 8. Ne4 {[%emt 0:00:04]} Bb7 {[%emt 0:10:23]} 9. c4 {[%emt 0:11:12]} Qa5+ 10. Bd2 {[%emt 0:04:04]} Nb4 {[%emt 0:06:35]} 11. c5 {[%emt 0:08:14]} Bxc5 {[%emt 0:16:04]} 12. a3 {[%emt 0:08:55]} Be7 {[%emt 0:33:30]} 13. axb4 {[%emt 0:41:00]} Qxe5 {[%emt 0:00:23]} 14. Bd3 {[%emt 0:03:21]} Qd4 {[%emt 0:11:14]} 15. Bc3 {[%emt 0:06:28]} Bxb4 {[%emt 0:02:22]} 16. O-O {[%emt 0:00:09]} Bxc3 {[%emt 0:03:59]} 17. bxc3 {[%emt 0:00:04]} Qe5 {[%emt 0:01:12]} 18. Qb3 {[%emt 0:04:32]} 1-0

[Event "37th Zalakaros Festival 2018"]
[Site "Zalakaros"]
[Date "2018.06.02"]
[Round "9"]
[White "Szeberenyi, Adam"]
[Black "Kincs, Imre"]
[Result "0-1"]
[ECO "D45"]
[WhiteElo "2372"]
[BlackElo "2210"]
[Annotator "NA"]
[PlyCount "64"]
[EventDate "2018.??.??"]
[EventType "swiss"]
[EventCountry "HUN"]
[SourceTitle "playchess.com"]
[Source "ChessBase"]
[SourceQuality "1"]
[TimeControl "40/5400+30:1800+30"]

1. d4 {[%emt 0:00:02]} Nf6 {[%emt 0:27:58]} 2. Nf3 d5 {[%emt 0:00:26]} 3. c4 {[%emt 0:00:25]} e6 {[%emt 0:00:05]} 4. Nc3 {[%emt 0:00:16]} c6 {[%emt 0:00:29]} 5. e3 {[%emt 0:00:29]} Nbd7 {[%emt 0:00:16]} 6. Qc2 {[%emt 0:02:11]} Bd6 {[%emt 0:01:55]} 7. e4 {[%emt 0:02:32]} dxe4 {[%emt 0:00:07]} 8. Nxe4 {[%emt 0:00:03]} Nxe4 {[%emt 0:00:06]} 9. Qxe4 {[%emt 0:00:04]} Nf6 {[%emt 0:00:52]} 10. Qh4 {[%emt 0:00:46]} c5 {[%emt 0:00:37] D45: Semi-Slav: 5 e3} 11. Bd2 {[%emt 0:03:13]} cxd4 {[%emt 0:00:48]} 12. Nxd4 {[%emt 0:04:48]} Be5 $146 {[%emt 0:01:47]} ({Predecessor:} 12... Bd7 13. Bc3 Qc7 14. Bd3 h6 15. O-O e5 16. Nf5 Bxf5 17. Bxf5 O-O 18. Rac1 Rfe8 19. Rfe1 a5 20. a3 Kh8 21. b4 axb4 22. axb4 b6 23. Kh1 {½-½ (23) Sadler,M (2515)-Ribli,Z (2610) Altensteig 1992}) 13. Nb5 {[%emt 0:10:34]} Bxb2 {[%emt 0:07:32]} 14. Rd1 {[%emt 0:02:51]} O-O {[%emt 0:03:42]} 15. Bb4 {[%emt 0:02:35]} Bd7 {[%emt 0:00:07]} 16. Rb1 {[%emt 0:09:47]} Bxb5 {[%emt 0:07:30]} 17. Rxb2 {[%emt 0:09:10]} Ba4 {[%emt 0:03:08]} 18. Be2 {[%emt 0:01:22]} Re8 {[%emt 0:00:30]} 19. O-O {[%emt 0:00:56]} Rc8 {[%emt 0:00:20]} 20. Rd2 {[%emt 0:03:50]} Qc7 {[%emt 0:01:11]} 21. Bd6 {[%emt 0:06:02]} Qa5 {[%emt 0:02:41]} 22. Rd3 {[%emt 0:02:22]} Bc2 {[%emt 0:00:30]} 23. Ra3 {[%emt 0:06:14]} Qd2 {[%emt 0:00:42]} 24. Rg3 {[%emt 0:09:59]} Qxd6 {[%emt 0:00:18]} 25. Bf3 {[%emt 0:05:39]} Bg6 {[%emt 0:02:46]} 26. Qg5 {[%emt 0:00:45]} Rc5 {[%emt 0:01:37]} 27. Qe3 {[%emt 0:00:08]} b6 {[%emt 0:00:10]} 28. h4 {[%emt 0:00:08]} Rec8 {[%emt 0:01:20]} 29. Rd1 {[%emt 0:00:48]} Qc7 {[%emt 0:02:12]} 30. Be2 {[%emt 0:01:56]} Re5 {[%emt 0:01:47]} 31. Qf4 {[%emt 0:00:58]} h6 {[%emt 0:00:12]} 32. Re3 {[%emt 0:02:19]} Rd5 $19 {[%emt 0:00:52]} 0-1

[Event "37th Zalakaros Festival 2018"]
[Site "Zalakaros"]
[Date "2018.06.02"]
[Round "9"]
[White "Srinath, Rao S.V."]
[Black "Pribelszky, Bence"]
[Result "1-0"]
[ECO "A46"]
[WhiteElo "2363"]
[BlackElo "2187"]
[Annotator "NA"]
[PlyCount "91"]
[EventDate "2018.??.??"]
[EventType "swiss"]
[EventCountry "HUN"]
[SourceTitle "playchess.com"]
[Source "ChessBase"]
[SourceQuality "1"]
[TimeControl "40/5400+30:1800+30"]

1. d4 {[%emt 0:03:25]} Nf6 {[%emt 0:01:14]} 2. Nf3 {[%emt 0:00:07]} e6 {[%emt 0:00:33]} 3. Bf4 {[%emt 0:00:12]} c5 {[%emt 0:01:52]} 4. e3 {[%emt 0:00:06]} d5 {[%emt 0:01:35]} 5. c3 {[%emt 0:00:12]} Nc6 {[%emt 0:00:33]} 6. Nbd2 {[%emt 0:00:16]} Bd6 {[%emt 0:01:31]} 7. Bg3 {[%emt 0:00:08]} O-O {[%emt 0:01:09]} 8. Bd3 {[%emt 0:00:09]} b6 {[%emt 0:05:25]} 9. Ne5 {[%emt 0:01:30]} Bb7 {[%emt 0:03:55]} 10. f4 {D02: 1 d4 d5 2 Nf3 sidelines, including 2...Nf6 3 g3 and 2...Nf6 3 Bf4} Ne7 {[%emt 0:06:39]} 11. Qc2 {[%emt 0:06:20]} Ng6 $146 {[%emt 0:17:06]} ({Predecessor:} 11... c4 12. Be2 Nf5 13. Bf2 Be7 14. Ng4 Nxg4 15. Bxg4 Nd6 16. f5 exf5 17. Bxf5 Nxf5 18. Qxf5 {½-½ (35) Andreikin,D (2720)-Karjakin,S (2762) Baku 2015}) 12. O-O {[%emt 0:00:32]} a5 {[%emt 0:05:54]} 13. a4 {[%emt 0:06:40]} Ba6 {[%emt 0:03:22]} 14. Bxa6 {[%emt 0:01:47]} Rxa6 {[%emt 0:00:20]} 15. Nxg6 {[%emt 0:00:06]} hxg6 {[%emt 0:01:57]} 16. Bh4 {[%emt 0:00:04]} Qc7 {[%emt 0:06:02]} 17. Bxf6 {[%emt 0:00:24]} gxf6 {[%emt 0:00:16]} 18. Qd3 {[%emt 0:00:05]} Raa8 {[%emt 0:02:58]} 19. g3 {[%emt 0:03:36]} Rad8 {[%emt 0:08:38]} 20. h4 {[%emt 0:01:15]} f5 {[%emt 0:02:24]} 21. Nf3 {[%emt 0:05:38]} c4 {[%emt 0:10:28]} 22. Qe2 {[%emt 0:00:23]} f6 {[%emt 0:01:36]} 23. h5 {[%emt 0:00:16]} gxh5 {[%emt 0:02:20]} 24. Kf2 {[%emt 0:03:10]} Kg7 {[%emt 0:06:31]} 25. Rh1 {[%emt 0:01:01]} Rh8 {[%emt 0:00:45]} 26. Rh3 {[%emt 0:00:33]} Rh6 {[%emt 0:01:14]} 27. Rah1 {[%emt 0:00:47]} Rdh8 {[%emt 0:01:01]} 28. Nd2 {[%emt 0:01:52]} Kg6 {[%emt 0:02:29]} 29. Kg2 {[%emt 0:03:34]} Qc6 {[%emt 0:02:04]} 30. Qd1 {[%emt 0:02:15]} b5 {[%emt 0:01:08]} 31. axb5 {[%emt 0:02:34]} Qxb5 {[%emt 0:00:05]} 32. Qc2 {[%emt 0:00:09]} Rb8 {[%emt 0:02:06]} 33. g4 {[%emt 0:02:04]} Qxb2 {[%emt 0:00:46]} 34. gxf5+ {[%emt 0:00:03]} Kg7 {[%emt 0:01:02]} 35. Rg3+ {[%emt 0:00:05]} (35. Qd1 $142 exf5 36. Kf3) 35... Kh7 {[%emt 0:00:12]} 36. Qd1 {[%emt 0:00:17]} h4 {[%emt 0:00:48]} 37. Qg4 {[%emt 0:01:05]} Qxd2+ {[%emt 0:00:27]} 38. Kf3 {[%emt 0:00:04]} Qd1+ {[%emt 0:00:33]} 39. Rxd1 {[%emt 0:00:06]} hxg3 {[%emt 0:00:06]} 40. fxe6 {[%emt 0:00:00]} Rg8 {[%emt 0:00:54]} 41. Qf5+ {[%emt 0:01:13]} Kh8 {[%emt 0:13:02]} 42. Qxd5 $18 {[%emt 0:00:59]} g2 {[%emt 0:03:27]} 43. Rg1 {[%emt 0:00:37]} Rh3+ {[%emt 0:01:29]} 44. Kf2 {[%emt 0:00:07]} Rgg3 {[%emt 0:01:03]} 45. Rxg2 {[%emt 0:00:24]} Rxe3 {[%emt 0:00:37]} 46. Qa8+ {[%emt 0:00:12]} 1-0

[Event "37th Zalakaros Festival 2018"]
[Site "Zalakaros"]
[Date "2018.06.02"]
[Round "9"]
[White "Ianov, Viktor"]
[Black "Csonka, Attila Istvan"]
[Result "1/2-1/2"]
[ECO "A04"]
[WhiteElo "2285"]
[BlackElo "2372"]
[Annotator "NA"]
[PlyCount "69"]
[EventDate "2018.??.??"]
[EventType "swiss"]
[EventCountry "HUN"]
[SourceTitle "playchess.com"]
[Source "ChessBase"]
[SourceQuality "1"]
[TimeControl "40/5400+30:1800+30"]

1. Nf3 {[%emt 0:00:01]} Nc6 {[%emt 0:00:54]} 2. d4 {[%emt 0:01:44]} d5 {[%emt 0:00:05]} 3. g3 {[%emt 0:00:07]} Bg4 {[%emt 0:00:25]} 4. Bg2 {[%emt 0:00:09]} Bxf3 {[%emt 0:01:13] D02: Damenbauernspiele} (4... Qd7 5. O-O O-O-O 6. c4 dxc4 7. Be3 e5 8. d5 Nge7 9. Nc3 Nxd5 10. Nxd5 Qxd5 11. Qc2 Bxf3 12. Bxf3 Qe6 13. Rfc1 a6 14. Bxc6 Qxc6 {0-1 (24) Bok,B (2600)-Van Foreest,J (2606) Amsterdam 2017}) 5. Bxf3 {[%emt 0:01:42]} Nf6 {[%emt 0:00:34]} 6. c3 {[%emt 0:03:18]} e5 {[%emt 0:02:36]} 7. Qb3 {[%emt 0:01:11]} Rb8 $146 {[%emt 0:04:52]} ({Vorgänger:} 7... e4 8. Bg2 Rb8 9. Bg5 Be7 10. O-O h6 11. Bxf6 Bxf6 12. Nd2 O-O {1-0 (49) Peinado,E (2144)-Escobar Medina,A (2067) Medellin 2014}) 8. dxe5 {[%emt 0:02:22]} Nxe5 {[%emt 0:00:16]} 9. Bg2 {[%emt 0:00:17]} c6 {[%emt 0:01:50]} 10. Be3 {[%emt 0:00:35]} Qa5 {[%emt 0:01:43]} 11. O-O Bd6 {[%emt 0:04:03]} 12. Nd2 {[%emt 0:01:45]} O-O {[%emt 0:00:49]} 13. c4 {[%emt 0:02:46]} d4 {[%emt 0:01:22]} 14. Bg5 {[%emt 0:00:21]} Nfd7 {[%emt 0:05:35]} 15. Ne4 {[%emt 0:03:41]} Nc5 {[%emt 0:01:47]} 16. Qc2 {[%emt 0:00:10]} Nxe4 {[%emt 0:03:26]} 17. Bxe4 {[%emt 0:00:36]} Ng6 {[%emt 0:08:02]} 18. h4 {[%emt 0:01:27]} f5 {[%emt 0:02:42]} 19. Bd3 {[%emt 0:02:23]} Qe5 {[%emt 0:09:39]} 20. f4 {[%emt 0:03:14]} Qe3+ {[%emt 0:01:43]} 21. Kg2 {[%emt 0:00:39]} Qe6 {[%emt 0:04:47]} 22. Rf3 {[%emt 0:03:11]} c5 {[%emt 0:04:13]} 23. e4 {[%emt 0:02:47]} dxe3 {[%emt 0:00:42]} 24. Re1 {[%emt 0:00:21]} h6 {[%emt 0:06:43]} 25. Rfxe3 {[%emt 0:03:37]} Qd7 {[%emt 0:00:20]} 26. Re6 {[%emt 0:06:38]} hxg5 {[%emt 0:02:57]} 27. Bxf5 {[%emt 0:03:10]} Nxf4+ {[%emt 0:03:17]} 28. gxf4 {[%emt 0:00:09]} Bxf4 {[%emt 0:00:10]} 29. hxg5 {[%emt 0:07:00]} Qd2+ {[%emt 0:10:04]} 30. R1e2 {[%emt 0:00:32]} Qxc2 {[%emt 0:00:12]} 31. Bxc2 {[%emt 0:00:08]} Bxg5 {[%emt 0:00:34]} 32. Bg6 {[%emt 0:01:19]} Rf6 {[%emt 0:03:38]} 33. Re8+ {[%emt 0:00:37]} Rxe8 {[%emt 0:00:45]} 34. Rxe8+ {[%emt 0:00:07]} Rf8 {[%emt 0:00:03]} 35. Rxf8+ $11 {[%emt 0:00:55]} 1/2-1/2

[Event "37th Zalakaros Festival 2018"]
[Site "Zalakaros"]
[Date "2018.06.02"]
[Round "9"]
[White "Marosi, Levente"]
[Black "Li, Bo"]
[Result "1/2-1/2"]
[ECO "B32"]
[WhiteElo "2277"]
[BlackElo "2319"]
[Annotator "NA RC"]
[PlyCount "81"]
[EventDate "2018.??.??"]
[EventType "swiss"]
[EventCountry "HUN"]
[SourceTitle "playchess.com"]
[Source "ChessBase"]
[SourceQuality "1"]
[TimeControl "40/5400+30:1800+30"]

1. e4 {[%emt 0:00:03]} c5 {[%emt 0:00:55]} 2. Nf3 {[%emt 0:00:19]} Nc6 {[%emt 0:00:39]} 3. d4 {[%emt 0:00:17]} cxd4 {[%emt 0:00:23]} 4. Nxd4 {[%emt 0:00:03]} Qb6 {[%emt 0:01:13]} 5. Nb3 {[%emt 0:00:18]} Nf6 {[%emt 0:00:58]} 6. Nc3 {[%emt 0:00:20]} d6 {[%emt 0:01:12]} 7. Be3 {[%emt 0:00:28]} Qd8 {[%emt 0:02:18]} 8. Qd2 {[%emt 0:01:14]} g6 {[%emt 0:03:17]} 9. f3 {[%emt 0:00:09]} Bg7 {[%emt 0:02:30]} 10. O-O-O {[%emt 0:04:47]} Be6 {[%emt 0:03:39]} 11. Nd4 Nxd4 {[%emt 0:04:53]} 12. Bxd4 {[%emt 0:01:03]} O-O {[%emt 0:04:36]} 13. Kb1 {[%emt 0:10:51]} a6 {[%emt 0:08:01]} 14. h4 {[%emt 0:05:08]} b5 {[%emt 0:16:11]} 15. h5 {[%emt 0:05:43]} Qc7 {[%emt 0:03:04]} 16. g4 {[%emt 0:10:21] B76: Sicilian Dragon: Yugoslav Attack, 9 g4 and 9 0-0-0} Rfc8 {[%emt 0:04:06]} 17. hxg6 {[%emt 0:04:19]} hxg6 {[%emt 0:04:17]} 18. Nd5 {[%emt 0:19:30]} (18. Ne2 d5 19. e5 Nd7 20. Nf4 Nxe5 21. Qh2 Kf8 22. Re1 Ke8 23. Nxe6 fxe6 24. Bxe5 Bxe5 25. Rxe5 Kd7 26. Qe2 {1-0 (26) Sandipan,C (2579)-Belezky,A (2466) Germany 2008}) 18... Bxd5 {[%emt 0:03:11]} 19. exd5 {[%emt 0:00:11]} Qb7 $146 {[%emt 0:03:28]} ({Predecessor:} 19... b4 20. g5 Nh5 21. Bxg7 Nxg7 22. Bh3 Rd8 {1-0 (62) Muller,A (2175)-Wohlers Armas,F (2178) Val d'Isere 2004}) 20. g5 {[%emt 0:06:19]} Nh5 {[%emt 0:03:36]} 21. Rxh5 {[%emt 0:08:30]} gxh5 {[%emt 0:01:27]} 22. Bxg7 {[%emt 0:00:03]} Kxg7 {[%emt 0:00:29]} 23. Qd4+ {[%emt 0:00:02]} Kg8 {[%emt 0:02:39]} 24. Bd3 {[%emt 0:01:19]} Rc4 {[%emt 0:07:36]} (24... e5 $142 25. dxe6 fxe6) 25. Bxc4 {[%emt 0:00:46]} bxc4 {[%emt 0:00:01]} 26. Rh1 {[%emt 0:04:16]} c3 {[%emt 0:03:09]} 27. b3 {[%emt 0:01:43]} Qb5 {[%emt 0:00:02]} 28. a4 {[%emt 0:06:47]} Qc5 {[%emt 0:01:16]} 29. Qd3 {[%emt 0:00:30]} Kg7 {[%emt 0:02:30]} 30. Rxh5 {[%emt 0:03:06]} Rh8 {[%emt 0:01:41]} 31. Rxh8 {[%emt 0:00:21]} Kxh8 {[%emt 0:00:07]} 32. Ka2 {[%emt 0:00:17]} (32. Qxa6 $142 Qxd5 33. Qc8+ Kh7 34. Qxc3 Qxg5 35. a5) 32... a5 {[%emt 0:01:46]} 33. g6 {[%emt 0:02:50]} Kg7 {[%emt 0:02:19]} 34. gxf7 {[%emt 0:00:03]} Kxf7 {[%emt 0:00:15]} 35. Qf5+ {[%emt 0:01:24]} Ke8 {[%emt 0:01:11]} 36. Qg6+ {[%emt 0:01:05]} Kd8 {[%emt 0:00:37]} (36... Kf8 37. Qf5+ Kg7 38. Qe4) 37. Qg8+ {[%emt 0:00:57]} Kd7 $1 {[%emt 0:01:40]} 38. Qe6+ $2 {[%emt 0:00:08]} Kd8 {[%emt 0:00:39]} 39. Qg8+ {[%emt 0:00:47]} (39. Qe4 $18) 39... Kd7 {[%emt 0:00:01]} 40. Qe6+ {[%emt 0:00:00]} Kd8 {[%emt 0:00:23]} 41. Qg8+ $11 {[%emt 0:19:07]} 1/2-1/2

[Event "37th Zalakaros Festival 2018"]
[Site "Zalakaros"]
[Date "2018.06.02"]
[Round "9"]
[White "Doric, Nenad"]
[Black "Tompa, Janos"]
[Result "1/2-1/2"]
[ECO "E45"]
[WhiteElo "2250"]
[BlackElo "2372"]
[Annotator "NA"]
[PlyCount "27"]
[EventDate "2018.??.??"]
[EventType "swiss"]
[EventCountry "HUN"]
[SourceTitle "playchess.com"]
[Source "ChessBase"]
[SourceQuality "1"]
[TimeControl "40/5400+30:1800+30"]

1. d4 {[%emt 0:00:09]} Nf6 {[%emt 0:01:04]} 2. c4 {[%emt 0:00:15]} e6 {[%emt 0:00:38]} 3. Nc3 {[%emt 0:00:58]} Bb4 {[%emt 0:01:06]} 4. e3 {[%emt 0:00:31]} b6 {[%emt 0:01:58]} 5. Nge2 {[%emt 0:02:32]} Ba6 {[%emt 0:01:28]} 6. Qa4 {[%emt 0:00:55]} c5 {[%emt 0:03:02]} 7. a3 {[%emt 0:00:34]} Bxc3+ {[%emt 0:00:09]} 8. Nxc3 {[%emt 0:00:08]} O-O {[%emt 0:02:31]} 9. dxc5 {[%emt 0:01:33]} bxc5 {[%emt 0:00:19]} 10. Be2 {[%emt 0:00:43]} Bb7 11. O-O {[%emt 0:01:30]} a6 {[%emt 0:05:46]} 12. Rd1 {[%emt 0:06:38]} Qc7 {[%emt 0:01:14]} 13. b4 {[%emt 0:08:30]} Nc6 {[%emt 0:08:30]} 14. Rb1 {[%emt 0:15:49]} 1/2-1/2

[Event "37th Zalakaros Festival 2018"]
[Site "Zalakaros"]
[Date "2018.06.02"]
[Round "9"]
[White "Peczely, Sebastian Zsombor"]
[Black "Medancic, Rikard"]
[Result "0-1"]
[ECO "B06"]
[WhiteElo "2244"]
[BlackElo "2164"]
[Annotator "NA"]
[PlyCount "96"]
[EventDate "2018.??.??"]
[EventType "swiss"]
[EventCountry "HUN"]
[SourceTitle "playchess.com"]
[Source "ChessBase"]
[SourceQuality "1"]
[TimeControl "40/5400+30:1800+30"]

1. e4 {[%emt 0:00:03]} g6 {[%emt 0:00:35]} 2. d4 {[%emt 0:00:04]} Bg7 {[%emt 0:00:05]} 3. Nc3 {[%emt 0:00:03]} d6 {[%emt 0:00:08]} 4. Be3 {[%emt 0:00:04]} a6 {[%emt 0:00:05]} 5. f3 {[%emt 0:00:05]} Nd7 {[%emt 0:00:05]} 6. Qd2 {[%emt 0:00:04]} e6 {[%emt 0:00:12] B06: Modern Defence} 7. O-O-O {[%emt 0:00:05]} b5 {[%emt 0:00:09]} 8. Kb1 {[%emt 0:00:06]} Bb7 {[%emt 0:00:44]} 9. g4 {[%emt 0:00:20]} h6 {[%emt 0:00:12]} 10. h4 {[%emt 0:00:07]} Ne7 {[%emt 0:01:14]} 11. Nh3 {[%emt 0:01:11]} (11. Qh2 b4 12. Nce2 Nb6 13. Ng3 {1-0 (29) Areshchenko,A (2675)-Graf,A (2564) Bad Wiessee 2016}) 11... c5 $146 {[%emt 0:01:02]} ({Predecessor:} 11... d5 12. Bd3 c5 13. dxc5 d4 14. Bxd4 Bxd4 15. Bxb5 {½-½ (31) Ipek,E (1697)-Karatas,K (1879) Konya 2017}) 12. g5 {[%emt 0:01:22]} h5 {[%emt 0:00:13]} 13. Nf2 {[%emt 0:04:07]} Qc7 {[%emt 0:00:28]} 14. Bh3 Nb6 {[%emt 0:10:14]} 15. b3 {[%emt 0:08:12]} b4 {[%emt 0:06:02]} 16. Ne2 {[%emt 0:00:09]} a5 {[%emt 0:01:04]} 17. Nf4 {[%emt 0:08:00]} cxd4 {[%emt 0:07:05]} 18. Bxd4 {[%emt 0:00:38]} e5 {[%emt 0:00:06]} 19. Bxb6 {[%emt 0:05:23]} Qxb6 {[%emt 0:00:21]} 20. Nd5 {[%emt 0:00:04]} Nxd5 {[%emt 0:05:25]} 21. exd5 {[%emt 0:00:07]} a4 {[%emt 0:00:22]} 22. Rhe1 {[%emt 0:02:20]} Ra5 {[%emt 0:05:58]} 23. f4 {[%emt 0:07:49]} O-O {[%emt 0:11:51]} 24. f5 {[%emt 0:07:22]} Rfa8 {[%emt 0:00:48]} 25. Ne4 {[%emt 0:11:10]} axb3 {[%emt 0:05:35]} 26. cxb3 {[%emt 0:00:54]} Rxa2 {[%emt 0:01:10]} 27. Qxa2 {[%emt 0:00:09]} Rxa2 {[%emt 0:00:07]} 28. Kxa2 {[%emt 0:00:00]} Qa5+ {[%emt 0:05:55]} 29. Kb1 {[%emt 0:00:05]} Bxd5 {[%emt 0:00:24]} 30. Rc1 {[%emt 0:06:21]} Qa3 {[%emt 0:05:06]} 31. Rc8+ {[%emt 0:02:55]} Kh7 {[%emt 0:00:05]} 32. fxg6+ {[%emt 0:00:54]} fxg6 {[%emt 0:00:16]} 33. Bg2 {[%emt 0:01:23]} Qxb3+ {[%emt 0:02:22]} 34. Kc1 {[%emt 0:00:06]} Qa3+ {[%emt 0:01:53]} 35. Kd1 {[%emt 0:00:16]} Qa1+ {[%emt 0:02:47]} 36. Kd2 {[%emt 0:00:52]} Qd4+ {[%emt 0:03:07]} 37. Kc1 {[%emt 0:00:35]} Qa1+ {[%emt 0:01:19]} 38. Kd2 {[%emt 0:00:10]} Qb2+ {[%emt 0:00:36]} 39. Rc2 {[%emt 0:00:05]} Qd4+ {[%emt 0:00:05]} 40. Kc1 {[%emt 0:00:00]} b3 {[%emt 0:01:44]} 41. Rce2 {[%emt 0:06:16]} Bxe4 {[%emt 0:01:29]} 42. Bxe4 {[%emt 0:00:09]} d5 {[%emt 0:00:05]} 43. Bb1 {[%emt 0:00:23]} e4 {[%emt 0:04:49]} 44. Rd2 {[%emt 0:01:47]} Qc4+ {[%emt 0:00:59]} 45. Kd1 {[%emt 0:00:06]} Bc3 {[%emt 0:00:10]} 46. Bd3 {[%emt 0:01:07]} Qd4 {[%emt 0:01:30]} 47. Rf1 {[%emt 0:00:44]} Bxd2 {[%emt 0:00:22]} 48. Rf6 {[%emt 0:00:25]} Bxg5 {[%emt 0:00:20]} 0-1